Cogmind - Beta 11.1 @@@ ROGUE MODE // 2022.07.15 @ 17:12:46 Player: Calazard Result: Destroyed by B-86 Titan with Hardcell Cannon Performance ------------- Evolutions (6) 3000 Regions Visited (11) 2200 Robots Destroyed (40) 200 Value Destroyed (1233) 1233 Prototype IDs (1) 20 Alien Tech Used (0) 0 Bonus (1542) 1542 TOTAL SCORE: 8195 Bonus ------- High Alert Combat Kills 136 Follower Combat Kills 406 Entered DSFs 1000 Cogmind --------- Core Integrity 0/1150 Matter 300/300 Energy 100/100 System Corruption 0% Temperature Cool (9) Movement Core (50) Location -4/Factory Parts ------- > --- POWER (2) -------- (None) > --- PROPULSION (4) --- (None) > --- UTILITY (7) ------ Enhanced Optical Array Improved Targeting Computer > --- WEAPON (6) ------- (None) > --- INVENTORY (5) ---- Heavy Treads Improved Heavy Treads Energy Well (350) Peak State ------------ > --- POWER ------------ Light Angular Momentum Engine > --- PROPULSION ------- Improved Treads > --- UTILITY ---------- Enhanced Optical Array Improved Sensor Array Advanced Signal Interpreter Advanced Targeting Computer Advanced Transmission Jammer Utility Shielding Improved Medium Armor Plating > --- WEAPON ----------- KE Penetrator KE Penetrator KE Penetrator KE Penetrator KE Penetrator > --- INVENTORY -------- Fission Core Huge Storage Unit Energy Well Compact Matter Pod KE Penetrator [Rating: 67] Favorites ----------- Power Light Ion Engine Engine Light Ion Engine Power Core Fission Core Propulsion Light Treads Treads Light Treads Utility Signal Interpreter Device Improved Sensor Array Storage Small Storage Unit Processor Signal Interpreter Protection Utility Shielding Weapon Heavy Beamcaster Energy Gun Heavy Beamcaster Energy Cannon EM Pulse Cannon Ballistic Gun KE Penetrator Ballistic Cannon Advanced Assault Cannon Launcher Grenade Launcher Build | -11 -10 -9 -8 -7 -7 -6 -6 -6 -5 -5 -4 ------- Run | Scr Mat Mat Mat Fac DSF Fac Was Fac Fac DSF Fac Slots Evolved 12 | . . 2 2 2 . 2 . . 2 . 2 Power 1 | . . . . 1 . . . . . . . Propulsion 2 | . . . 1 1 . . . . . . . Utility 5 | . . . 1 . . 2 . . 1 . 1 Weapon 4 | . . 2 . . . . . . 1 . 1 Parts Attached 51 | 6 1 6 7 . . 5 5 3 2 8 8 Power 7 | 1 . 1 2 . . 1 . 1 . . 1 Engine 6 | 1 . 1 2 . . 1 . 1 . . . Core 1 | . . . . . . . . . . . 1 Reactor . | . . . . . . . . . . . . Propulsion 5 | 2 . 2 . . . . 1 . . . . Treads 5 | 2 . 2 . . . . 1 . . . . Leg . | . . . . . . . . . . . . Wheel . | . . . . . . . . . . . . Hover . | . . . . . . . . . . . . Flight . | . . . . . . . . . . . . Utility 15 | 1 1 . 2 . . 2 1 2 1 . 5 Device 5 | . . . 1 . . . . 1 . . 3 Storage 2 | 1 . . . . . . . . . . 1 Processor 5 | . 1 . . . . 2 . 1 . . 1 Hackware . | . . . . . . . . . . . . Protection 3 | . . . 1 . . . 1 . 1 . . Artifact . | . . . . . . . . . . . . Weapon 24 | 2 . 3 3 . . 2 3 . 1 8 2 Energy Gun 7 | 1 . 1 . . . . 3 . 1 . 1 Energy Cannon 3 | . . . 3 . . . . . . . . Ballistic Gun 10 | 1 . . . . . . . . . 8 1 Ballistic Cannon 2 | . . . . . . 2 . . . . . Launcher 2 | . . 2 . . . . . . . . . Special Weapon . | . . . . . . . . . . . . Impact Weapon . | . . . . . . . . . . . . Slashing Weapon . | . . . . . . . . . . . . Piercing Weapon . | . . . . . . . . . . . . Special Melee Weapon . | . . . . . . . . . . . . Unidentified Prototypes 1 | . . . . . . . . . . . 1 Parts Lost 20 | . 1 . 7 . . 2 . . . . 10 Power 4 | . . . 2 . . 1 . . . . 1 Propulsion 1 | . . . . . . . . . . . 1 Utility 5 | . . . 1 . . . . . . . 4 Weapon 10 | . 1 . 4 . . 1 . . . . 4 Highest Loss Streak 8 | . 1 . 6 . . 2 . . . . 8 To Critical Strikes . | . . . . . . . . . . . . Average Slot Usage (%) 68 | . 89 99 75 . 15 20 32 61 70 72 43 Engine 6 | . 14 11 7 . . . . 1 5 5 1 Treads 12 | . 28 21 15 . . . 2 6 5 5 1 Device 2 | . . . 6 . . . . 2 5 5 6 Storage 5 | . 14 11 7 . . . . . . . . Processor 12 | . 11 11 9 . 7 11 13 20 17 17 15 Protection 4 | . . . 1 . 7 6 8 9 11 11 4 Energy Gun 7 | . 6 11 2 . . . 7 20 23 10 . Ballistic Gun 7 | . 14 11 2 . . . . . . 14 11 Launcher 5 | . . 22 12 . . . . . . . . Naked Turns . | . . . . . . . . . . . . Heaviest Build 44 | 11 11 18 27 1 1 26 23 26 38 43 44 Greatest Support 43 | 40 40 43 43 3 3 3 23 23 23 23 23 Greatest Overweight (x) 8 | . . . . . . 8 1 1 1 1 1 Average Overweight (x) . | . . . . . . . . . 1 . . Largest Inventory Capacity 8 | 8 8 8 8 5 5 5 5 5 5 5 5 Average Capacity 6 | 6 8 8 7 5 5 5 5 5 5 5 5 Most Carried 8 | 1 6 8 8 4 5 5 5 2 1 5 5 Average Carried 4 | . 2 6 7 4 4 4 4 2 . 3 4 Final Capacity 8 | 8 8 8 5 5 5 5 5 5 5 5 5 Final Carried 8 | 1 6 8 4 4 5 5 3 2 . 5 5 Class Distribution -------------------- 70% | Mutant 9% | Skirmisher 8% | Tank 4% | Executioner 3% | Derelict-Skirmisher Dominant Class ---------------- Mutant | -10/Materials Mutant | -9/Materials Mutant | -8/Materials Mutant | -7/Factory Mutant | -7/DSF Mutant | -6/Factory Mutant | -6/Waste Tank | -6/Factory Tank | -5/Factory Skirmisher | -5/DSF Mutant | -4/Factory Resources | -11 -10 -9 -8 -7 -7 -6 -6 -6 -5 -5 -4 ----------- Run | Scr Mat Mat Mat Fac DSF Fac Was Fac Fac DSF Fac Matter Collected 1353 | 178 . 194 161 . . 14 314 . . 322 170 Remotely . | . . . . . . . . . . . . Salvage Created 1145 | . 61 270 367 . . 14 125 . . 151 157 Parts 67 | 2 5 26 27 . . 2 . . . 3 2 Haulers Intercepted . | . . . . . . . . . . . . Recyclers Shooed . | . . . . . . . . . . . . Parts Field Recycled . | . . . . . . . . . . . . Retrieved Matter . | . . . . . . . . . . . . Parts Self-Destructed . | . . . . . . . . . . . . Prevented . | . . . . . . . . . . . . Kills | -11 -10 -9 -8 -7 -7 -6 -6 -6 -5 -5 -4 ------- Run | Scr Mat Mat Mat Fac DSF Fac Was Fac Fac DSF Fac Combat Hostiles Destroyed 30 | . 2 14 9 . . 1 1 . . 1 2 Guns 4 | . . . . . . . 1 . . 1 2 Cannons 4 | . . . 3 . . 1 . . . . . AOE 22 | . 2 14 6 . . . . . . . . Classes Destroyed 12 | 1 2 4 2 . . . 1 . . 1 1 Worker 6 | 1 . 3 2 . . . . . . . . Recycler 2 | . . . 2 . . . . . . . . Operator 1 | . 1 . . . . . . . . . . Watcher 1 | . . 1 . . . . . . . . . Swarmer 8 | . . 3 4 . . 1 . . . . . Grunt 13 | . 2 8 3 . . . . . . . . Brawler 1 | . . . 1 . . . . . . . . Duelist 1 | . . 1 . . . . . . . . . Sentry 3 | . . 2 1 . . . . . . . . Specialist 1 | . . . . . . . . . . 1 . Hunter 2 | . . . . . . . . . . . 2 Compactor 1 | . . . . . . . 1 . . . . Best Kill Streak 12 | 1 2 4 12 . . 1 1 . . 1 2 Combat Bots Only 8 | . 2 3 8 . . 1 1 . . 1 2 Max Kills in Single Turn 3 | 1 2 2 3 . . 1 1 . . 1 2 Gunslinging 1 | . . . . . . . . . . . 1 Exploded 2 | . 2 2 2 . . . . . . . . Melee . | . . . . . . . . . . . . Uniques/NPCs Destroyed . | . . . . . . . . . . . . Combat | -11 -10 -9 -8 -7 -7 -6 -6 -6 -5 -5 -4 -------- Run | Scr Mat Mat Mat Fac DSF Fac Was Fac Fac DSF Fac Damage Taken 5498 | . 402 232 915 . 62 972 21 . . 377 2517 Core 2270 | . 52 49 274 . 62 574 21 . . 88 1150 Absorbed by Shields . | . . . . . . . . . . . . Redirected to Shielding 43 | . . . . . . . . . . 4 39 Regen/Repaired (Parts) 120 | . . 120 . . . . . . . . . Core Remaining (%) 75 | 100 79 87 50 . 91 . . 30 . 91 . Volleys Fired 66 | . 3 17 19 . . 5 8 . . 2 12 Largest 6 | . 2 2 2 . . 1 1 . . 5 6 Hottest 198 | . 60 60 126 . . 48 81 . . 165 198 Shots Fired 141 | . 6 34 23 . . 5 8 . . 10 55 Gun 79 | . 6 . . . . . 8 . . 10 55 Cannon 16 | . . . 11 . . 5 . . . . . Launcher 46 | . . 34 12 . . . . . . . . Special . | . . . . . . . . . . . . Kinetic 73 | . 3 . . . . 5 . . . 10 55 Thermal 11 | . 3 . . . . . 8 . . . . Explosive 46 | . . 34 12 . . . . . . . . Electromagnetic 11 | . . . 11 . . . . . . . . Robot Hit Streak 6 | . . 4 5 . . 6 5 . . 3 3 Robot Miss Streak 5 | . . 2 2 . . . 1 . . 3 5 Penetration Max 1 | . . . . . . . . . . . 1 Secondary Targets 1 | . . . . . . . . . . . 1 Max Gunslinging Chain 1 | . . . . . . . . . . . 1 Shots Hit Robots 55 | . . 13 10 . . 1 6 . . 5 20 Core Hits 81 | 1 3 40 24 . . 1 1 . . 2 9 Critical Kills . | . . . . . . . . . . . . Critical Parts Destroyed 1 | . . . . . . . . . . . 1 Critical Strikes 1 | . . . . . . . . . . . 1 Destroy 1 | . . . . . . . . . . . 1 Melee Attacks . | . . . . . . . . . . . . Impact . | . . . . . . . . . . . . Slashing . | . . . . . . . . . . . . Piercing . | . . . . . . . . . . . . Sneak Attacks . | . . . . . . . . . . . . Combat Hostiles . | . . . . . . . . . . . . Follow-up Attacks . | . . . . . . . . . . . . Damage Inflicted 3103 | 3 327 1179 782 . . 40 160 . . 120 492 Guns 753 | . . . . . . . 160 . . 120 473 Cannons 227 | . . . 201 . . 26 . . . . . Explosions 2028 | . 301 1162 565 . . . . . . . . Melee . | . . . . . . . . . . . . Ramming 95 | 3 26 17 16 . . 14 . . . . 19 Kinetic 619 | . . . . . . 26 . . . 120 473 Thermal 348 | . 188 . . . . . 160 . . . . Explosive 1840 | . 113 1162 565 . . . . . . . . Electromagnetic 201 | . . . 201 . . . . . . . . Impact . | . . . . . . . . . . . . Slashing . | . . . . . . . . . . . . Piercing . | . . . . . . . . . . . . Highest Corruption 1 | . . . 1 . . 1 1 1 . . . Average Corruption 1 | . . . 1 . . 1 1 1 . . . Corruption Purged . | . . . . . . . . . . . . Corruption Blocked . | . . . . . . . . . . . . Effects 5 | . . . . . . . 3 2 . . . Message Errors 2 | . . . . . . . 2 . . . . Matter Fused 1 | . . . . . . . . 1 . . . Energy Discharges 1 | . . . . . . . . 1 . . . Data Loss (minor) 1 | . . . . . . . 1 . . . . Overload Shots . | . . . . . . . . . . . . Overflow Damage 75 | . 56 2 17 . . . . . . . . Projectiles 17 | . . . 17 . . . . . . . . Explosions 58 | . 56 2 . . . . . . . . . Melee . | . . . . . . . . . . . . Knockbacks . | . . . . . . . . . . . . Impact . | . . . . . . . . . . . . Kinetic . | . . . . . . . . . . . . Secondary . | . . . . . . . . . . . . Self-Inflicted Damage 153 | . 68 63 6 . . 7 . . . . 9 Shots 4 | . 1 3 . . . . . . . . . Rammed 23 | 1 8 7 2 . . 3 . . . . 2 Targets Rammed 24 | 2 8 7 2 . . 3 . . . . 2 Kicked . | . . . . . . . . . . . . Crushed 1 | 1 . . . . . . . . . . . Highest Temperature 362 | . 18 12 93 . . . 36 . . 12 362 Average Temperature 94 | . 10 4 32 . . . 15 . . 8 196 Received Heat Transfer 939 | . 186 72 558 . . . . . . 57 66 Effects 1 | . . . . . . . . . . . 1 Short Circuit 1 | . . . . . . . . . . . 1 Siege Activations . | . . . . . . . . . . . . Robots Corrupted . | . . . . . . . . . . . . Combat Hostiles . | . . . . . . . . . . . . Parts Fried 1 | . . . 1 . . . . . . . . Impact Corruptions . | . . . . . . . . . . . . Robots Melted . | . . . . . . . . . . . . Combat Hostiles . | . . . . . . . . . . . . Parts Melted . | . . . . . . . . . . . . Heat Transferred 359 | . 100 . . . . . 259 . . . . Parts Sabotaged . | . . . . . . . . . . . . Parts Stolen . | . . . . . . . . . . . . Parts Stripped . | . . . . . . . . . . . . Power Chain Reactions . | . . . . . . . . . . . . Missiles Intercepted . | . . . . . . . . . . . . Alert | -11 -10 -9 -8 -7 -7 -6 -6 -6 -5 -5 -4 ------- Run | Scr Mat Mat Mat Fac DSF Fac Was Fac Fac DSF Fac Peak Influence 738 | . 298 738 702 319 241 161 106 191 93 161 350 Initial 319 | . 3 92 311 319 226 126 54 49 93 65 60 Average 195 | . 148 393 424 319 230 139 79 72 93 100 121 Maximum Alert Level 3 | . 1 3 3 1 1 . . . . . 1 Low Security (%) 59 | 100 53 8 . . . 100 100 100 100 100 69 Level 1 28 | . 46 44 62 100 100 . . . . . 30 Level 2 10 | . . 36 35 . . . . . . . . Level 3 2 | . . 10 1 . . . . . . . . Level 4 . | . . . . . . . . . . . . Level 5 . | . . . . . . . . . . . . High Security . | . . . . . . . . . . . . Max Security . | . . . . . . . . . . . . Squads Dispatched 15 | . 1 1 2 . . 1 . 4 . 1 5 Investigation 6 | . . 1 1 . . 1 . 1 . . 2 Extermination 2 | . . . . . . . . 1 . . 1 Reinforcement 6 | . 1 . 1 . . . . 1 . 1 2 Assault . | . . . . . . . . . . . . Garrison 1 | . . . . . . . . 1 . . . Intercept . | . . . . . . . . . . . . Searches Triggered . | . . . . . . . . . . . . Construction Impeded 1 | . . . 1 . . . . . . . . Haulers Reinforced . | . . . . . . . . . . . . Active Scanning Responses . | . . . . . . . . . . . . Cargo Convoy Interrupts . | . . . . . . . . . . . . Stealth | -11 -10 -9 -8 -7 -7 -6 -6 -6 -5 -5 -4 --------- Run | Scr Mat Mat Mat Fac DSF Fac Was Fac Fac DSF Fac Distress Signals 3 | . 1 1 . . . . . . . . 1 Communications Jammed 1 | . . . . . . . . . . . 1 Distress Signals 1 | . . . . . . . . . . . 1 Times Spotted 113 | . 13 18 18 . 1 6 10 6 . 5 36 Peak Tracking Total 12 | . 5 4 8 . 3 4 5 3 . 2 12 Tactical Retreats 9 | . . . 1 . 1 . 1 1 . . 5 Traps | -11 -10 -9 -8 -7 -7 -6 -6 -6 -5 -5 -4 ------- Run | Scr Mat Mat Mat Fac DSF Fac Was Fac Fac DSF Fac Traps Triggered 10 | . . 1 2 . 1 2 . . . 3 1 Indirectly . | . . . . . . . . . . . . Trap Hack Attempts . | . . . . . . . . . . . . Triggered . | . . . . . . . . . . . . Disarmed . | . . . . . . . . . . . . Reprogrammed . | . . . . . . . . . . . . Reused . | . . . . . . . . . . . . Traps Extracted . | . . . . . . . . . . . . Installed . | . . . . . . . . . . . . Triggered . | . . . . . . . . . . . . Machines | -11 -10 -9 -8 -7 -7 -6 -6 -6 -5 -5 -4 ---------- Run | Scr Mat Mat Mat Fac DSF Fac Was Fac Fac DSF Fac Machines Disabled 9 | . 6 . 2 . . . . . . 1 . Max in Single Turn 4 | . 4 . 2 . . . . . . 1 . Machines Sabotaged . | . . . . . . . . . . . . Garrisons Compromised . | . . . . . . . . . . . . Overloaded Fab Kills . | . . . . . . . . . . . . Hacking | -11 -10 -9 -8 -7 -7 -6 -6 -6 -5 -5 -4 --------- Run | Scr Mat Mat Mat Fac DSF Fac Was Fac Fac DSF Fac Machines Accessed 18 | . 5 2 2 1 . 3 . 1 1 . 3 Terminals 13 | . 4 1 2 1 . 2 . 1 1 . 1 Fabricators . | . . . . . . . . . . . . Repair Stations 2 | . . 1 . . . . . . . . 1 Recycling Units 3 | . 1 . . . . 1 . . . . 1 Scanalyzers . | . . . . . . . . . . . . Garrison Access . | . . . . . . . . . . . . Total Hacks 36 | . 11 5 8 1 . 3 . 2 1 . 5 Successful 17 | . 7 3 2 1 . 2 . . 1 . 1 Failed 19 | . 4 2 6 . . 1 . 2 . . 4 Catastrophic 4 | . . . 2 . . . . . . . 2 Database Lockouts . | . . . . . . . . . . . . Manual 30 | . 11 2 8 . . 4 . 2 . . 3 Terminals 27 | . 9 2 8 1 . 2 . 2 1 . 2 Fabricators . | . . . . . . . . . . . . Repair Stations 5 | . . 3 . . . . . . . . 2 Recycling Units 4 | . 2 . . . . 1 . . . . 1 Scanalyzers . | . . . . . . . . . . . . Garrison Access . | . . . . . . . . . . . . Terminal Hacks 4 | . . . 1 1 . 1 . . 1 . . Open DSF 3 | . . . . 1 . 1 . . 1 . . Level Access Points 1 | . . . 1 . . . . . . . . Fabricator Hacks . | . . . . . . . . . . . . Repair Station Hacks 2 | . . 2 . . . . . . . . . Scan Component 1 | . . 1 . . . . . . . . . Repair 1 | . . 1 . . . . . . . . . Recycling Unit Hacks 2 | . 1 . . . . . . . . . 1 Retrieve Components 2 | . 1 . . . . . . . . . 1 Scanalyzer . | . . . . . . . . . . . . Garrison Access Hacks . | . . . . . . . . . . . . Unauthorized Hacks 9 | . 6 1 1 . . 1 . . . . . Terminals 7 | . 5 1 1 . . . . . . . . Assimilate 3 | . 3 . . . . . . . . . . Detonate 4 | . 2 1 1 . . . . . . . . Fabricators . | . . . . . . . . . . . . Repair Stations . | . . . . . . . . . . . . Recycling Units 2 | . 1 . . . . 1 . . . . . Reject 2 | . 1 . . . . 1 . . . . . Scanalyzers . | . . . . . . . . . . . . Garrison Access . | . . . . . . . . . . . . Data Cores Recovered . | . . . . . . . . . . . . Used . | . . . . . . . . . . . . Hacking Detections 10 | . 1 2 2 . . 1 . 1 . . 3 Full Trace Events 4 | . . 1 . . . . . 1 . . 2 Feedback Events . | . . . . . . . . . . . . Feedback Blocked 1 | . . . . . . . . . . . 1 Robot Schematics Acquired . | . . . . . . . . . . . . Robots Built . | . . . . . . . . . . . . Authchips . | . . . . . . . . . . . . Time . | . . . . . . . . . . . . Total Robot Build Rating . | . . . . . . . . . . . . Part Schematics Acquired . | . . . . . . . . . . . . Parts Built . | . . . . . . . . . . . . Authchips . | . . . . . . . . . . . . Time . | . . . . . . . . . . . . Total Part Build Rating . | . . . . . . . . . . . . Parts Repaired 1 | . . 1 . . . . . . . . . Time 26 | . . 26 . . . . . . . . . Parts Recycled . | . . . . . . . . . . . . Recycled Matter . | . . . . . . . . . . . . Retrieved Matter . | . . . . . . . . . . . . Retrieved Components 3 | . . . . . . . . . . . 3 Parts Scanalyzed . | . . . . . . . . . . . . Part Schematics Acquired . | . . . . . . . . . . . . Parts Damaged . | . . . . . . . . . . . . Bothacking | -11 -10 -9 -8 -7 -7 -6 -6 -6 -5 -5 -4 ------------ Run | Scr Mat Mat Mat Fac DSF Fac Was Fac Fac DSF Fac Used RIF Installer . | . . . . . . . . . . . . Robots Hacked . | . . . . . . . . . . . . Non-combat . | . . . . . . . . . . . . Combat . | . . . . . . . . . . . . Robot Hacks Applied . | . . . . . . . . . . . . Relay Couplers Released . | . . . . . . . . . . . . Fabnet Peak Effective % . | . . . . . . . . . . . . Robots Rewired . | . . . . . . . . . . . . Allies Hacked . | . . . . . . . . . . . . Hacks Repelled . | . . . . . . . . . . . . Allies | -11 -10 -9 -8 -7 -7 -6 -6 -6 -5 -5 -4 -------- Run | Scr Mat Mat Mat Fac DSF Fac Was Fac Fac DSF Fac Total Allies 20 | . 1 . . . . . 19 . . . . Largest Group 19 | . 1 . . . . . 19 10 8 8 2 Highest-Rated Group 684 | . 10 . . . . . 684 384 313 313 54 Highest-Rated Ally 50 | . 10 . . . . . 50 46 46 46 27 Total Orders . | . . . . . . . . . . . . Ally Attacks 139 | . . . . . . . 85 18 . 36 . Total Damage 5625 | . . . . . . . 4439 453 . 733 . Kills 17 | . . . . . . . 9 4 . 4 . Allies Corrupted . | . . . . . . . . . . . . Allies Melted . | . . . . . . . . . . . . Intel | -11 -10 -9 -8 -7 -7 -6 -6 -6 -5 -5 -4 ------- Run | Scr Mat Mat Mat Fac DSF Fac Was Fac Fac DSF Fac Robot Analysis Total . | . . . . . . . . . . . . Derelict Logs Recovered . | . . . . . . . . . . . . Drone Launches . | . . . . . . . . . . . . Drone Recoveries . | . . . . . . . . . . . . Exploration | -11 -10 -9 -8 -7 -7 -6 -6 -6 -5 -5 -4 ------------- Run | Scr Mat Mat Mat Fac DSF Fac Was Fac Fac DSF Fac Turns Passed 3188 | 106 606 606 305 3 37 222 319 291 7 288 398 Spaces Moved 2238 | 61 306 316 190 6 35 293 327 161 3 108 432 Core 1051 | 5 . . 70 6 35 293 259 . . . 383 Treads 1187 | 56 306 316 120 . . . 68 161 3 108 49 Legs . | . . . . . . . . . . . . Wheels . | . . . . . . . . . . . . Hover . | . . . . . . . . . . . . Flight . | . . . . . . . . . . . . Fastest Speed 50 | 50 160 160 50 50 50 50 50 160 240 160 50 Average Speed 117 | 150 160 160 119 50 50 55 82 176 240 239 71 Slowest Speed 450 | 160 160 160 160 50 50 450 160 240 240 240 240 Overloaded Moves . | . . . . . . . . . . . . Propulsion Burnouts . | . . . . . . . . . . . . Robots Hopped . | . . . . . . . . . . . . Cave-ins Triggered . | . . . . . . . . . . . . Exploration Rate (%) 37 | 4 52 30 36 . 42 10 96 4 . 85 17 Regions Visited 11 Branch Regions . Pre-discovered Areas . | . . . . . . . . . . . . Known Exits Taken 6 | . 1 1 1 1 . . . 1 1 . . Unknown Exits Taken 1 | 1 . . . . . . . . . . . Scrap Searched . | . . . . . . . . . . . . Spaces Dug . | . . . . . . . . . . . . Terrain Destroyed 283 | . 69 152 53 . . . . . . . 9 Melee . | . . . . . . . . . . . . Projectile 9 | . . . . . . . . . . . 9 AOE 274 | . 69 152 53 . . . . . . . . Terrain Rammed . | . . . . . . . . . . . . Walls Destroyed . | . . . . . . . . . . . . Machines Disabled . | . . . . . . . . . . . . Actions | -11 -10 -9 -8 -7 -7 -6 -6 -6 -5 -5 -4 --------- Run | Scr Mat Mat Mat Fac DSF Fac Was Fac Fac DSF Fac Total 2688 | 71 411 379 247 5 54 351 369 168 4 135 494 Wait 209 | . 89 26 15 . . 34 22 4 . . 19 Move 2229 | 61 305 315 189 5 34 293 326 160 2 107 432 Hop . | . . . . . . . . . . . . Pick Up 42 | 2 5 6 4 . 3 6 4 . . 6 6 Fast Attach 25 | 6 1 . 3 . . 1 3 2 . 5 4 Attach 21 | . . 4 4 . . 4 2 1 2 . 4 Detach 5 | . . . . . . 1 . . . . 4 Swap 5 | . . 2 . . . . . . . 3 . Drop 44 | 1 . 2 11 . 2 4 4 1 . 8 11 Fire 66 | . 3 17 19 . . 5 8 . . 2 12 Melee . | . . . . . . . . . . . . Ram 6 | . . . 1 . . 3 . . . . 2 Kick . | . . . . . . . . . . . . Crush 17 | 1 8 7 1 . . . . . . . . Escape Stasis 19 | . . . . . 15 . . . . 4 . Rewire . | . . . . . . . . . . . . Trap . | . . . . . . . . . . . . Miscellaneous . | . . . . . . . . . . . . Route ------- -11/Scrapyard -10/Materials -9/Materials -8/Materials (discovered 3 exits: *Fac x3) -7/Factory -7/DSF -6/Factory -6/Waste -6/Factory -5/Factory -5/DSF -4/Factory History --------- Turn | Location | Event 10 | -11/Scrapyard | Discovered new exit (range 15) 107 | -11/Scrapyard | Entered Materials 304 | -10/Materials | Build established: Mutant 487 | -10/Materials | Discovered new exit (range 10) 507 | -10/Materials | Identified exit to Materials 713 | -10/Materials | Entered another Materials area 713 | -9/Materials | Evolved 2 slots: Weapon x2 1059 | -9/Materials | Repaired Lgt. Treads 1271 | -9/Materials | Discovered new exit (range 15) 1317 | -9/Materials | Identified exit to Materials 1319 | -9/Materials | Entered another Materials area 1319 | -8/Materials | Evolved 2 slots: Propulsion x1, Utility x1 1429 | -8/Materials | Identified exit to Factory 1554 | -8/Materials | Destroyed 8 combat bots 1607 | -8/Materials | Lost 6 parts (2p1u3w) 1624 | -8/Materials | Entered Factory 1624 | -7/Factory | Evolved 2 slots: Power x1, Propulsion x1 1627 | -7/Factory | Identified exit to DSF 1627 | -7/Factory | Entered DSF 1634 | -7/DSF | Discovered new exit (range 15) 1653 | -7/DSF | Additional patrols routed to DSF 1663 | -7/DSF | Identified exit to Factory 1664 | -7/DSF | Entered Factory 1664 | -6/Factory | Evolved 2 slots: Utility x2 1863 | -6/Factory | Core integrity fell below 50% 1886 | -6/Factory | Sucked down chute 1886 | -6/Factory | Entered Waste 1892 | -6/Waste | Spotted C-40 Crusher 1902 | -6/Waste | Spotted C-40 Crusher 1903 | -6/Waste | Spotted C-40 Crusher 1903 | -6/Waste | Spotted C-40 Crusher 1945 | -6/Waste | Spotted C-40 Crusher 1969 | -6/Waste | Discovered new exit (range 15) 1970 | -6/Waste | Spotted C-40 Crusher 1983 | -6/Waste | Warlord forces began an assault 2046 | -6/Waste | Allies destroyed C-40 Crusher 2050 | -6/Waste | Destroyed C-40 Crusher 2053 | -6/Waste | Allies destroyed C-40 Crusher 2057 | -6/Waste | Allies destroyed C-40 Crusher 2066 | -6/Waste | Allies destroyed C-40 Crusher 2203 | -6/Waste | Identified exit to Factory 2205 | -6/Waste | Entered Factory 2205 | -6/Factory | Accompanied by 10 allies 2441 | -6/Factory | Garrison activated, responded to threat 2462 | -6/Factory | Discovered new exit (range 16) 2491 | -6/Factory | Identified exit to Factory 2496 | -6/Factory | Entered another Factory area 2496 | -5/Factory | Accompanied by 8 allies 2496 | -5/Factory | Evolved 2 slots: Utility x1, Weapon x1 2503 | -5/Factory | Identified exit to DSF 2503 | -5/Factory | Entered DSF 2503 | -5/DSF | Accompanied by 8 allies 2529 | -5/DSF | Additional patrols routed to DSF 2547 | -5/DSF | Found Hvy. Insulated Plating 2741 | -5/DSF | Discovered new exit (range 22) 2789 | -5/DSF | Identified exit to Factory 2791 | -5/DSF | Entered Factory 2791 | -4/Factory | Accompanied by 2 allies 2791 | -4/Factory | Evolved 2 slots: Utility x1, Weapon x1 2989 | -4/Factory | Lost 8 parts (1p1n2u4w) 3079 | -4/Factory | Core integrity fell below 50% 3128 | -4/Factory | Core integrity fell below 20% 3184 | -4/Factory | Spotted B-86 Titan 3189 | -4/Factory | Destroyed by B-86 Titan with Hardcell Cannon Last Messages --------------- 03123_ Penetrated by Slug. 03123_ Slug penetrates Wall. 03123_ Penetrated by Slug. 03123_ K-01 Serf collects debris. 03124_ Acquired 13 matter. 03126_ Penetrated by Slug. 03126_ Slug penetrates W-44 Eye. 03126_ K-01 Serf suffers critical hit (Destroy). 03126_ K-01 Serf destroyed. 03132_ Nuclear Reactor explodes. 03132_ H-77 Assassin destroyed. 03132_ S-27 Virus destroyed. 03150_ ALERT: Suspicious intruders detected, dispatching Cutter reinforcements to area. 03157_ Connecting with Terminal... 03157_ ALERT: Suspicious activity at Terminal F013. Dispatching Investigation squad. 03180_ Adv. Signal Interpreter severed. 03188_ Penetrated by Slug. 03189_ Adv. Trap Scanner severed. Map ----- +----------------------------------------------------+ | ?????????????????????????????????????????????????? | | ?????????????????????????????????????????????????? | | ?????????????????????????????????????????????????? | | ?????????????????????????????????????????????????? | | ????????????????????????????????????????????????+? | | ??????????????????????????????????????????????? | | ??????????????????????????????????????????????? # | | ??????????????????????????????????????????????" # | | ??????????????????????????????????????????????" + | | ?????????????????????????????????????????????"" # | | ????????????????????????????????????????????? # | | ????????????????????????????????????????????? # | | ????????????????????????????????????????????? # | | ??????????# ????????????????????????????????? # | | ??????????# ???????????????????????????????? | | ??????????# ??##??????????????????????????? | | ?????????## ?#BB?????????????????????????? | | ????????? #BB############?????????????? | | ????????? ^ #?????????????? """ | | ????????? ############### """ | | ??????????????" """ """ | | ???????????"""" """ c """ | | ???????????"""" """ ############ | | ???????????"""" ###??????????# | | ???????????"""" c #????????????# | | ???????????"""" @ #????????????# #### | | ???? % #???????????# #??? | | ???? """"""""" +???????????# #??? | | ????? """"""""" #???????????# #??? | | ??????? ? ? """"""""" #???????????# #??? | | ?????????????????"""""""" #???????????# #??? | | ?????????????????"""""""" ??# #### #### | | ???????????????????"""""" #?# / | | ?????????????????????? h # "" | | ?????????????????????? ### # "" | | ??????????????????????### h#?# ###### ## "" | | ????????????????????????###+###?## ??????# ## "" | | ?????????????????????????????????# ???????# ## | | ?????????????????????????????????+ ????????# ## | | ?????????????????????????????????#?????????# ## | | ???????????????????????????????????????????# ## | | ???????????????????????????????????????????# ##### | | ???????????????????????????????????????????#+#???? | | ?????????????????????????????????????????????????? | | ?????????????????????????????????????????????????? | | ?????????????????????????????????????????????????? | | ?????????????????????????????????????????????????? | | ?????????????????????????????????????????????????? | | ?????????????????????????????????????????????????? | | ?????????????????????????????????????????????????? | +----------------------------------------------------+ Best States ------------- Heat Dissipation 45 Energy Generation 18 Energy Capacity 310 Matter Stores 347 Matter Capacity 450 Sight Range 22 Robot Scan Range 15 Terrain Scan Density 10 Jamming Range 16 Armor Coverage 225 Utility Shielding 33 Evasion (%) 50 Targeting Accuracy 8 Recoil Reduction 2 Item Schematics ----------------- None Robot Schematics ------------------ None Fabricated ------------ Nothing Alien Tech Used ----------------- None Achievements -------------- None Challenges ------------ None Game ------ Seed BiometalSmartbombUnit Manual? 0 Play Time 00:34:22 Cumulative 26.4 hours Start 2022.07.15 @ 16:39:05 End 2022.07.15 @ 17:12:46 Sessions 1 Manual Loads 0 Difficulty Rogue Special Mode None Game No. 39 Rogue 39 Adventurer 0 Explorer 0 Win Type - Total 0 Types 0/0/0/0/0/0/0/0/0 Lore% 28 Gallery% 37 Achievement% 31 Wizard Run 0 Options --------- ASCII 0 Keyboard 0 Movement Numpad Keybinds 0 Fullscreen 0 Font 16/Terminus Map View 76x50 Tactical HUD 1 Map Filters NONE Filters NONE Steam X RUN: 933665c3-4fe6-47fd-8b8d-5256597ba4b7